bitfinex-derivatives/quotes_BNBF0:USTF0_20250807
["timestamp","ask_amount","ask_price","bid_price","bid_amount"]
[1754542236993,0.87837189,766.13,765.45,1.96296498]
[1754542240397,0.87837189,766.13,765.45,1.082]
[1754542241098,0.2272015,766.24,765.45,1.082]
[1754542245304,0.87516444,766.05,765.45,1.082]
[1754542246303,0.87516444,766.14,765.45,1.082]
[1754542247202,0.87516444,766.15,765.45,1.082]
[1754542247501,0.87516444,766.14,765.45,1.082]
[1754542247708,0.87516444,766.13,765.45,1.082]
[1754542249304,0.87516444,766.14,765.45,1.082]
[1754542249808,0.87516444,766.09,765.45,1.082]
[1754542250209,0.87516444,766.04,765.45,1.082]
[1754542250811,0.87516444,766.03,765.45,1.082]
[1754542251311,0.87516444,766.04,765.45,1.082]
[1754542252206,0.87516444,766.05,765.45,1.082]
[1754542253210,0.87516444,766.06,765.45,1.082]
[1754542254309,0.87516444,766.07,765.45,1.082]
[1754542255011,0.87516444,766.06,765.45,1.082]
[1754542255314,0.87516444,766.07,765.45,1.082]
[1754542256009,0.87516444,766.08,765.45,1.082]
[1754542256214,0.87516444,766.01,765.45,1.082]
[1754542256709,0.87516444,766.0,765.45,1.082]
[1754542256911,0.87516444,766.01,765.45,1.082]
[1754542258313,0.87516444,766.02,765.45,1.082]
[1754542258817,0.87516444,765.99,765.45,1.082]
[1754542259518,0.87516444,766.06,765.45,1.082]
[1754542260115,0.87516444,766.05,765.45,1.082]
[1754542260318,0.87516444,766.06,765.45,1.082]
[1754542260920,0.87516444,766.05,765.45,1.082]
[1754542261416,0.87516444,766.09,765.45,1.082]
[1754542262322,0.87516444,766.08,765.45,1.082]
[1754542264219,0.87516444,766.07,765.45,1.082]
[1754542266721,0.87516444,766.06,765.45,1.082]
[1754542267938,0.87516444,766.06,765.2,0.22723488]
[1754542268229,0.87516444,766.07,765.2,0.22723488]
[1754542269330,0.87516444,766.05,765.2,0.22723488]
[1754542270035,0.87516444,766.06,765.2,0.22723488]
[1754542270240,0.87516444,766.05,765.2,0.22723488]
[1754542271035,0.87516444,766.05,765.21,0.996]
[1754542271231,0.87516444,766.03,765.21,0.996]
[1754542271531,0.87516444,766.04,765.21,0.996]
[1754542274137,0.87519857,766.08,765.22,0.87750993]
[1754542275334,0.87519857,766.08,765.23,0.87750993]
[1754542276233,0.87519857,766.05,765.27,0.87750993]
[1754542276434,0.87519857,766.14,765.35,0.87750993]
[1754542276638,0.87519857,766.14,765.36,0.87750993]
[1754542277641,0.87519857,766.16,765.38,0.87750993]
[1754542279344,0.87519857,766.15,765.38,0.87750993]
[1754542279543,0.87519857,766.16,765.38,0.87750993]
[1754542280344,0.87519857,766.15,765.38,0.87750993]
[1754542280843,0.87519857,766.15,765.39,0.87750993]
[1754542281349,0.87519857,766.14,765.39,0.87750993]
[1754542282444,0.87519857,766.13,765.4,0.87750993]
[1754542283251,0.87519857,766.12,765.41,0.87750993]
[1754542284243,0.87519857,766.12,765.42,0.87750993]
[1754542285044,0.87519857,766.11,765.42,0.87750993]
[1754542286250,0.87519857,766.08,765.45,0.87750993]
[1754542286950,0.87519857,766.1,765.44,0.87750993]
[1754542287153,0.87519857,766.15,765.48,0.87750993]
[1754542287446,0.87519857,766.18,765.51,0.87750993]
[1754542287951,0.87519857,766.18,765.52,0.87750993]
[1754542288347,0.87519857,766.19,765.51,0.87750993]
[1754542289151,0.87519857,766.19,765.52,0.87750993]
[1754542289352,0.87519857,766.19,765.51,0.87750993]
[1754542293254,0.87519857,766.22,765.51,0.87750993]
[1754542293466,0.87519857,766.22,765.49,0.87750993]
[1754542293662,0.87519857,766.44,765.59,0.87750993]
[1754542293962,4.0923505,767.41,765.55,0.87750993]
[1754542293963,0.87519857,766.48,765.55,0.87750993]
[1754542294556,0.22714812,766.53,765.43,1.065]
[1754542294759,0.87663649,766.47,765.53,0.87766115]
[1754542294964,0.87663649,766.47,765.52,0.87766115]
[1754542295258,0.87663649,766.48,765.51,0.87766115]
[1754542296167,0.87663649,766.48,765.43,1.065]
[1754542296168,0.87663649,766.48,765.52,0.87766115]
[1754542296357,0.87663649,766.49,765.51,0.87766115]
[1754542296556,0.87663649,766.51,765.53,0.87766115]
[1754542297462,0.87663649,766.51,765.52,0.87766115]
[1754542298260,0.87663649,766.51,765.43,1.065]
[1754542298261,0.87663649,766.52,765.51,0.87766115]
[1754542299357,1.10378461,766.53,765.51,0.87766115]
[1754542299962,0.87663649,766.52,765.51,0.87766115]
[1754542300157,1.10378461,766.53,765.53,0.87766115]
[1754542300361,0.22714812,766.53,765.52,0.87766115]
[1754542301466,0.22714812,766.53,765.51,0.87766115]
[1754542302459,0.22714812,766.53,765.5,0.87766115]
[1754542303365,1.10378461,766.53,765.51,0.87766115]
[1754542303762,0.87663649,766.44,765.57,0.87766115]
[1754542304365,0.87663649,766.44,765.56,0.87766115]
[1754542304563,0.87663649,766.44,765.57,0.87766115]
[1754542305261,0.87663649,766.44,765.56,0.87766115]
[1754542305468,0.87663649,766.45,765.56,0.87766115]
[1754542306461,0.87663649,766.47,765.54,0.87766115]
[1754542306661,0.87663649,766.47,765.55,0.87766115]
[1754542307261,0.87663649,766.47,765.54,0.87766115]
[1754542308364,0.87663649,766.48,765.54,0.87766115]
[1754542309364,0.87663649,766.48,765.53,0.87766115]
[1754542313773,0.87663649,766.49,765.53,0.87766115]
[1754542314874,0.87663649,766.48,765.53,0.87766115]
[1754542316078,0.87663649,766.49,765.54,0.87766115]
[1754542316477,0.87663649,766.48,765.55,0.87766115]
[1754542316776,0.87663649,766.47,765.55,0.87766115]
[1754542320182,0.87663649,766.46,765.56,0.87766115]
[1754542320384,0.87663649,766.44,765.57,0.87766115]
[1754542321681,0.87663649,766.43,765.57,0.87766115]
[1754542323284,0.87663649,766.42,765.57,0.87766115]
[1754542323787,0.87663649,766.42,765.56,0.87766115]
[1754542324283,0.87663649,766.41,765.56,0.87766115]
[1754542324483,0.87663649,766.41,765.57,0.87766115]
[1754542326189,0.87663649,766.39,765.56,0.87766115]
[1754542327289,0.87663649,766.38,765.57,0.87766115]
[1754542327591,0.87663649,766.45,765.5,0.87766115]
[1754542328189,0.87663649,766.46,765.5,0.87766115]
[1754542328390,0.87663649,766.45,765.5,0.87766115]
[1754542329391,0.87663649,766.44,765.51,0.87766115]
[1754542329595,0.87663649,766.32,765.43,1.065]
[1754542329794,0.87663649,766.22,765.44,0.87766115]
[1754542330296,0.87663649,766.21,765.45,0.87766115]
[1754542331398,0.87663649,766.2,765.46,0.87766115]
[1754542332300,0.87663649,766.19,765.47,0.87766115]
[1754542333097,1.1714837,766.32,765.47,0.87766115]
[1754542333098,0.87663649,766.2,765.47,0.87766115]
[1754542333500,0.87663649,766.18,765.48,0.87766115]
[1754542333699,0.87663649,766.2,765.47,0.87766115]
[1754542334397,0.87663649,766.19,765.48,0.87766115]
[1754542334898,0.87663649,766.22,765.46,0.87766115]
[1754542335298,0.87663649,766.21,765.47,0.87766115]
[1754542335598,0.87663649,766.22,765.46,0.87766115]
[1754542336199,0.87663649,766.17,765.43,1.065]
[1754542337601,0.87663649,766.16,765.43,1.94266115]
[1754542339500,0.87663649,766.17,765.43,1.065]
[1754542340401,0.87663649,766.17,765.42,0.87766115]
[1754542342301,0.87663649,766.16,765.42,0.87766115]
[1754542342802,0.87663649,766.15,765.42,0.87766115]
[1754542343204,0.87663649,766.15,765.43,1.131]
[1754542343398,0.87663649,766.14,765.43,2.00866115]
[1754542344100,0.87663649,766.13,765.44,0.87766115]
[1754542344300,0.87663649,766.14,765.44,0.87766115]
[1754542345301,0.87663649,766.13,765.45,0.87766115]
[1754542345508,0.87663649,766.12,765.44,0.87766115]
[1754542348104,0.87663649,766.12,765.45,0.87766115]
[1754542348507,0.87663649,766.12,765.44,0.87766115]
[1754542349407,0.87663649,766.11,765.45,0.87766115]
[1754542351307,0.87663649,766.11,765.44,0.87766115]
[1754542351507,0.87663649,766.11,765.45,0.87766115]
[1754542353806,0.87663649,766.11,765.44,0.87766115]
[1754542354208,0.87663649,766.11,765.45,0.87766115]
[1754542354409,0.87663649,766.11,765.44,0.87766115]
[1754542359318,0.87663649,766.12,765.44,0.87766115]
[1754542361016,0.87663649,766.11,765.44,0.87766115]
[1754542362615,0.87654682,766.11,765.44,0.87797693]
[1754542363713,0.87654682,766.12,765.45,0.87797693]
[1754542363920,0.87654682,766.13,765.46,0.87797693]
[1754542366415,0.87654682,766.12,765.46,0.87797693]
[1754542370423,0.87654682,766.12,765.47,0.87797693]
[1754542370726,0.87654682,766.12,765.48,0.793]
[1754542371325,0.87654682,766.11,765.48,0.793]
[1754542373320,0.87654682,766.11,765.48,1.67097693]
[1754542374524,0.87654682,766.1,765.48,1.67097693]
[1754542376427,0.87654682,766.1,765.49,0.87797693]
[1754542377323,0.87654682,766.09,765.49,0.87797693]
[1754542378523,0.87654682,766.09,765.5,0.87797693]
[1754542379329,1.1714837,766.21,765.5,0.87797693]
[1754542379330,0.87654682,766.08,765.5,0.87797693]
[1754542381628,0.87654682,766.07,765.51,0.87797693]
[1754542383231,0.87654682,766.07,765.52,0.87797693]
[1754542383430,0.87654682,766.06,765.52,0.87797693]
[1754542384429,0.87654682,766.05,765.53,0.87797693]
[1754542385328,0.87654682,766.05,765.54,0.87797693]
[1754542385530,0.87654682,766.04,765.54,0.87797693]
[1754542386330,1.1714837,766.17,765.54,0.87797693]
[1754542386629,1.1714837,766.17,765.48,0.793]
[1754542387033,1.7572256,766.29,765.48,0.793]
[1754542387433,1.7572256,766.29,765.56,0.88035066]
[1754542387933,0.87895049,766.02,765.56,0.88035066]
[1754542388429,0.87895049,766.02,765.48,0.793]
[1754542388733,1.1719339,766.15,765.48,0.793]
[1754542389234,0.87921352,766.01,765.57,0.8806141]
[1754542390337,0.87921352,766.01,765.48,0.793]
[1754542390536,1.1719339,766.14,765.48,0.793]
[1754542391035,1.7572256,766.26,765.48,0.793]
[1754542391837,0.22714812,766.53,765.48,0.793]
[1754542392944,0.87956272,765.98,765.49,0.88112044]
[1754542393443,0.87956272,765.97,765.49,0.88112044]
[1754542394245,0.87956272,765.98,765.49,0.88112044]
[1754542394444,0.87956272,765.97,765.49,0.88112044]
[1754542395246,0.87956272,765.98,765.49,0.88112044]
[1754542395641,0.87956272,765.98,765.48,0.793]
[1754542395642,0.87956272,766.02,765.48,0.793]
[1754542395942,0.87956272,765.99,765.48,0.793]
[1754542396246,0.87956272,766.02,765.48,0.793]
[1754542396445,0.87956272,766.01,765.48,0.793]
[1754542397246,0.87956272,766.03,765.48,0.793]
[1754542397648,0.87956272,766.04,765.48,0.793]
[1754542397849,0.87956272,766.03,765.48,0.793]
[1754542398252,0.87956272,766.04,765.48,0.793]
[1754542399245,0.87956272,766.05,765.48,0.793]
[1754542401146,0.87730695,766.04,765.48,0.793]
[1754542401349,0.87730695,766.05,765.48,0.793]
[1754542402046,0.87730695,766.04,765.48,0.793]
[1754542402344,0.87730695,766.05,765.48,0.793]
[1754542403347,0.87730695,766.06,765.48,0.793]
[1754542403947,0.87730695,766.06,765.2,0.22724008]
[1754542405152,0.87730695,766.05,765.2,0.22724008]
[1754542405352,0.87730695,766.06,765.2,0.22724008]
[1754542405553,0.87730695,766.01,765.2,0.22724008]
[1754542406349,0.87730695,766.02,765.2,0.22724008]
[1754542406556,0.87730695,766.01,765.21,0.911]
[1754542407154,1.1727502,766.22,765.21,0.911]
[1754542407155,0.87730695,766.0,765.21,0.911]
[1754542407354,0.87730695,766.01,765.21,0.911]
[1754542407554,0.87730695,765.93,765.21,0.911]
[1754542410456,0.87730695,765.94,765.21,0.911]
[1754542411454,0.87730695,765.95,765.21,0.911]
[1754542411956,0.87730695,765.94,765.21,0.911]
[1754542412955,0.87730695,765.92,765.21,0.911]
[1754542413160,0.87730695,765.94,765.21,0.911]
[1754542413560,0.87730695,765.96,765.21,0.911]
[1754542414261,0.87730695,766.02,765.23,0.87926597]
[1754542416362,0.87730695,766.01,765.23,0.87926597]
[1754542416662,0.87730695,766.02,765.23,0.87926597]
[1754542417262,0.87730695,766.01,765.23,0.87926597]
[1754542418163,0.87730695,766.01,765.24,0.87926597]
[1754542418458,0.87730695,766.01,765.23,0.87926597]
[1754542419263,0.87730695,766.02,765.24,0.87926597]
[1754542419463,0.87730695,766.04,765.23,0.87926597]
[1754542422861,0.87730695,766.02,765.24,0.87926597]
[1754542423063,0.87730695,766.02,765.25,0.87926597]
[1754542423262,0.87730695,766.01,765.25,0.87926597]
[1754542426369,0.87730695,766.01,765.26,0.87926597]
[1754542427171,0.87730695,766.02,765.27,0.87926597]
[1754542428171,0.87730695,766.02,765.28,0.87926597]
[1754542429168,0.87730695,765.99,765.29,0.87926597]
[1754542429468,0.87730695,765.99,765.3,0.87926597]
[1754542430171,1.1727502,766.12,765.3,0.87926597]
[1754542430172,0.87730695,765.98,765.3,0.87926597]
[1754542431274,0.87730695,766.0,765.29,0.87926597]
[1754542432575,0.87730695,766.01,765.29,0.87926597]
[1754542433275,0.87730695,766.0,765.29,0.87926597]
[1754542434375,0.87730695,766.0,765.3,0.87926597]
[1754542435476,0.87730695,765.99,765.3,0.87926597]
[1754542435976,0.87730695,766.0,765.31,0.87926597]
[1754542437378,0.87730695,765.99,765.32,1.95526597]
[1754542438377,0.87730695,765.98,765.33,0.87926597]
[1754542440182,0.87730695,765.97,765.33,0.87926597]
[1754542440778,0.22714812,766.53,765.34,0.87926597]
[1754542440779,0.87730695,765.98,765.34,0.87926597]
[1754542441081,0.87730695,766.0,765.38,0.87926597]
[1754542441781,0.87730695,766.0,765.39,0.87926597]
[1754542442378,0.87730695,765.99,765.39,0.87926597]
[1754542442582,0.87730695,765.98,765.39,0.87926597]
[1754542442883,0.87730695,765.99,765.39,0.87926597]
[1754542443282,0.87730695,765.98,765.4,0.87926597]
[1754542443784,0.87730695,765.99,765.39,0.87926597]
[1754542444379,0.87730695,765.98,765.4,0.87926597]
[1754542445285,0.87730695,765.98,765.41,0.87926597]
[1754542445783,0.87730695,766.0,765.39,0.87926597]
[1754542446290,0.87730695,765.95,765.32,1.076]
[1754542446684,0.87730695,765.94,765.32,1.076]
[1754542447184,0.87730695,765.95,765.32,1.076]
[1754542447382,0.87730695,765.94,765.32,1.076]
[1754542449089,0.87730695,765.95,765.32,1.076]
[1754542449788,0.87730695,765.94,765.32,1.076]
[1754542450186,0.87730695,765.92,765.32,1.076]
[1754542450386,0.87730695,765.88,765.32,1.076]
[1754542450891,0.87730695,765.9,765.32,1.076]
[1754542451093,0.87730695,765.92,765.32,1.076]
[1754542452096,0.87730695,765.91,765.32,1.076]
[1754542452391,0.87730695,765.93,765.32,1.076]
[1754542453794,0.87730695,765.91,765.32,1.076]
[1754542455298,0.87730695,765.9,765.32,1.076]
[1754542455599,0.87730695,765.91,765.32,1.076]
[1754542456096,0.87730695,765.88,765.32,1.076]
[1754542456396,0.87730695,765.85,765.32,1.076]
[1754542456699,0.87730695,765.84,765.32,1.076]
[1754542456898,0.87730695,765.85,765.32,1.076]
[1754542458301,0.87730695,765.86,765.32,1.076]
[1754542459302,0.87730695,765.84,765.32,1.076]
[1754542459699,0.87730695,765.85,765.32,1.076]
[1754542460096,0.87730695,765.84,765.32,1.076]
[1754542460500,0.87730695,765.83,765.32,1.076]
[1754542462102,0.87730695,765.81,765.32,1.076]
[1754542462897,0.87730695,765.82,765.32,1.076]
[1754542463497,0.87730695,765.98,765.32,1.076]
[1754542473210,0.87730695,765.88,765.32,1.076]
[1754542476307,0.87730695,765.86,765.32,1.076]
[1754542476708,0.87730695,765.85,765.32,1.076]
[1754542477208,0.87730695,765.86,765.32,1.076]
[1754542478910,0.87730695,765.88,765.32,1.076]
[1754542479112,0.87730695,765.9,765.32,1.076]
[1754542481312,0.87730695,765.88,765.32,1.076]
[1754542483409,0.87730695,766.01,765.32,1.076]
[1754542483713,0.87730695,766.02,765.32,1.076]
[1754542484309,0.87730695,766.0,765.32,1.076]
[1754542486514,0.87730695,765.97,765.32,1.076]
[1754542487114,0.87730695,765.96,765.32,1.076]
[1754542490414,0.87730695,765.95,765.32,1.076]
[1754542490614,0.87730695,765.93,765.32,1.076]
[1754542493122,0.87730695,765.87,765.32,1.076]
[1754542493722,0.87730695,765.82,765.32,1.076]
[1754542494421,0.87730695,765.81,765.16,1.10652089]
[1754542495217,0.87730695,765.82,765.16,1.10652089]
[1754542498026,0.87730695,765.82,765.17,1.021]
[1754542498221,0.87730695,765.81,765.17,1.021]
[1754542498423,0.87730695,765.82,765.17,1.021]
[1754542499130,0.87730695,765.81,765.17,1.021]
[1754542499327,0.87730695,765.81,765.17,1.90026597]
[1754542500024,0.87730695,765.8,765.17,1.90026597]
[1754542501131,0.87730695,765.8,765.18,0.87926597]
[1754542501730,0.87730695,765.79,765.18,0.87926597]
[1754542502031,0.87730695,765.79,765.19,0.87926597]
[1754542503230,0.87730695,765.78,765.2,0.87926597]
[1754542504233,0.87730695,765.73,765.23,0.87926597]
[1754542505136,0.87730695,765.71,765.25,0.87926597]
[1754542506036,0.87730695,765.7,765.26,0.87926597]
[1754542507344,0.87730695,765.71,765.26,0.87926597]
[1754542508035,0.87730695,765.71,765.25,0.87926597]
[1754542508240,0.87730695,765.71,765.26,0.87926597]
[1754542510340,0.87730695,765.78,765.21,0.87926597]
[1754542517356,0.87730695,765.77,765.21,0.87926597]
[1754542520155,0.87730695,765.74,765.23,0.87926597]
[1754542526658,0.87730695,765.74,765.24,0.87926597]
[1754542527156,0.87730695,765.74,765.23,0.87926597]
[1754542528160,0.87730695,765.74,765.24,0.87926597]
[1754542528860,0.87730695,765.81,765.19,0.87926597]
[1754542529462,0.87730695,765.8,765.19,0.87926597]
[1754542530264,0.87730695,765.79,765.19,0.87926597]
[1754542534564,0.87730695,765.8,765.18,0.87926597]
[1754542536569,0.87730695,765.78,765.17,1.90026597]
[1754542538669,0.87730695,765.74,765.2,0.87926597]
[1754542539265,0.87730695,765.73,765.2,0.87926597]
[1754542540169,0.87730695,765.73,765.21,0.87926597]
[1754542542273,0.87730695,765.73,765.22,1.008]
[1754542543575,0.87730695,765.71,765.22,1.88726597]
[1754542543775,0.87730695,765.71,765.22,1.008]
[1754542544477,0.87730695,765.64,765.23,0.87926597]
[1754542544878,0.87730695,765.66,765.22,1.88726597]
[1754542545379,0.87730695,765.69,765.22,1.008]
[1754542545573,0.87730695,765.71,765.22,1.008]
[1754542545877,0.87730695,765.72,765.22,1.008]
[1754542546073,0.87730695,765.73,765.22,1.008]
[1754542546272,0.87730695,765.74,765.22,1.008]
[1754542546481,0.87730695,765.75,765.22,1.008]
[1754542547173,0.87730695,765.76,765.22,1.008]
[1754542547378,0.87730695,765.78,765.22,1.008]
[1754542547873,0.87730695,765.79,765.22,1.008]
[1754542548173,0.87730695,765.8,765.22,1.008]
[1754542548878,0.87730695,765.81,765.22,1.008]
[1754542549479,0.87730695,765.82,765.22,1.008]
[1754542550980,0.87730695,765.81,765.22,1.008]
[1754542552077,0.87730695,765.72,765.22,1.008]
[1754542552678,0.87730695,765.71,765.22,1.008]
[1754542553378,0.87730695,765.72,765.22,1.008]
[1754542557090,0.87730695,765.7,765.22,1.008]
[1754542557285,0.87730695,765.69,765.22,1.008]
[1754542557985,0.87730695,765.56,765.22,1.008]
[1754542558184,0.87730695,765.58,765.22,1.008]
[1754542558481,0.87730695,765.57,765.22,1.008]
[1754542559185,0.87730695,765.58,765.22,1.008]
[1754542560485,0.87730695,765.59,765.22,1.008]
[1754542560785,0.87730695,765.6,765.22,1.008]
[1754542562383,0.22726902,765.96,765.22,1.008]
[1754542562384,0.87730695,765.61,765.22,1.008]
[1754542563188,0.87730695,765.62,765.22,1.008]
[1754542565186,0.87730695,765.63,765.22,1.008]
[1754542566387,0.87730695,765.64,765.22,1.008]
[1754542566889,0.87730695,765.63,765.22,1.008]
[1754542567586,0.87730695,765.64,765.22,1.008]
[1754542567791,0.87730695,765.66,765.22,1.008]
[1754542567994,0.87730695,765.7,765.22,1.008]
[1754542569191,0.87730695,765.71,765.22,1.008]
[1754542570294,0.87730695,765.7,765.22,1.008]
[1754542573295,1.1727502,765.86,765.22,1.008]
[1754542573491,0.87576285,765.7,765.22,1.008]
[1754542574592,0.87576285,765.71,765.22,1.008]
[1754542576997,0.87576285,765.68,765.22,1.008]
[1754542578097,0.87576285,765.69,765.22,1.008]
[1754542578496,0.87576285,765.68,765.22,1.008]
[1754542579692,0.87576285,765.77,765.22,1.008]
[1754542580496,0.87576285,765.78,765.22,1.008]
[1754542580998,0.87576285,765.89,765.22,1.008]
[1754542583302,0.87576285,765.9,765.22,1.008]
[1754542583502,0.87576285,765.89,765.22,1.008]
[1754542585201,0.87576285,765.88,765.22,1.008]
[1754542589206,0.87576285,765.87,765.22,1.008]
[1754542589402,0.87576285,765.83,765.22,1.008]
[1754542591214,0.87576285,765.82,765.22,1.008]
[1754542591907,0.87576285,765.83,765.22,1.008]
[1754542593111,0.87576285,765.78,765.22,1.008]
[1754542593311,0.87576285,765.76,765.22,1.008]
[1754542594214,0.87576285,765.75,765.22,1.008]
[1754542597113,0.87576285,765.74,765.22,1.008]
[1754542598314,0.87576285,765.74,765.14,0.87918486]
[1754542599116,0.87576285,765.75,765.14,0.87918486]
[1754542599317,0.87576285,765.74,765.14,0.87918486]
[1754542599716,1.1727502,765.87,765.14,0.87918486]
[1754542599717,0.87576285,765.75,765.14,0.87918486]
[1754542600619,0.87576285,765.79,765.13,0.87918486]
[1754542600918,0.87576285,765.81,765.15,1.112]
[1754542603421,0.87576285,765.97,765.15,1.112]
[1754542603620,0.87576285,765.98,765.15,1.112]
[1754542603821,0.87576285,766.05,765.15,1.112]
[1754542608333,0.87576285,766.06,765.15,1.112]
[1754542609220,1.10303484,766.07,765.15,1.112]
[1754542609424,0.87576285,766.06,765.15,1.112]
[1754542612026,1.10303484,766.07,765.15,1.112]
[1754542613425,0.87576285,765.96,765.15,1.112]
[1754542614027,0.87576285,765.94,765.15,1.99118486]
[1754542614522,0.87576285,765.89,765.19,0.87918486]
[1754542616441,0.87576285,765.89,765.18,0.87918486]
[1754542617229,0.87576285,765.9,765.18,0.87918486]
[1754542617528,0.87576285,765.91,765.17,0.87918486]
[1754542619026,0.87576285,765.94,765.15,1.99118486]
[1754542620025,0.87576285,765.94,765.16,0.87918486]
[1754542621330,0.87576285,765.94,765.15,1.99118486]
[1754542621531,0.87576285,765.94,765.16,0.87918486]
[1754542621828,0.87576285,765.93,765.16,0.87918486]
[1754542622131,0.87576285,765.94,765.15,1.99118486]
[1754542622330,0.87576285,765.94,765.16,0.87918486]
[1754542623233,0.87585567,765.93,765.16,0.87883562]
[1754542624230,0.87585567,765.93,765.17,0.87883562]
[1754542625336,0.87585567,765.92,765.17,0.87883562]
[1754542626339,0.87585567,765.92,765.18,0.87883562]
[1754542627137,0.87585567,765.91,765.18,0.87883562]
[1754542627334,0.87585567,765.9,765.19,0.87883562]
[1754542628736,0.87585567,765.87,765.21,0.87883562]
[1754542630240,0.87585567,765.86,765.22,0.87883562]
[1754542631740,0.87585567,765.82,765.25,0.87883562]
[1754542634341,0.87585567,765.87,765.21,0.87883562]
[1754542635243,0.87585567,765.87,765.22,0.87883562]
[1754542636441,0.87585567,765.86,765.22,0.87883562]
[1754542636942,0.87585567,765.87,765.22,0.87883562]
[1754542637142,0.87585567,765.86,765.22,0.87883562]
[1754542637442,0.87585567,765.86,765.23,0.87883562]
[1754542638242,0.87585567,765.85,765.23,0.87883562]
[1754542639444,0.87585567,765.85,765.24,0.87883562]
[1754542640343,0.87585567,765.84,765.25,0.87883562]
[1754542642448,0.87585567,765.85,765.24,0.87883562]
[1754542643648,0.87585567,765.86,765.23,0.87883562]
[1754542643848,0.87585567,765.87,765.23,0.87883562]
[1754542644150,0.87585567,765.91,765.2,0.87883562]
[1754542644549,0.87585567,765.9,765.21,0.87883562]
[1754542644956,0.87585567,765.81,765.27,0.87883562]
[1754542645351,0.87585567,765.82,765.28,0.87883562]
[1754542646747,0.87585567,765.83,765.29,0.87883562]
[1754542646952,0.22724972,766.15,764.95,0.22731949]
[1754542646953,0.87585567,765.86,765.32,0.87883562]
[1754542647450,0.87585567,765.86,765.33,1.126]
[1754542648147,0.87585567,765.9,765.36,0.87883562]
[1754542649352,0.87585567,765.92,765.38,0.87883562]
[1754542649849,0.87585567,765.93,765.36,0.87883562]
[1754542650348,0.87585567,765.94,765.36,0.87883562]
[1754542651251,0.87585567,765.93,765.36,0.87883562]
[1754542651552,0.87585567,765.95,765.37,0.87883562]
[1754542652048,0.87585567,766.0,765.42,0.87883562]
[1754542652453,1.39999992,766.15,765.33,1.126]
[1754542652454,0.87585567,766.01,765.41,0.87883562]
[1754542653253,0.87585567,766.02,765.41,0.87883562]
[1754542654556,0.87585567,766.02,765.4,0.87883562]
[1754542656455,0.87585567,766.03,765.4,0.87883562]
[1754542657367,0.87585567,766.03,765.39,0.87883562]
[1754542658267,0.87585567,766.03,765.4,0.87883562]
[1754542658567,0.87585567,766.03,765.39,0.87883562]
[1754542659768,0.87585567,765.99,765.42,0.87883562]
[1754542660166,0.87585567,766.0,765.42,0.87883562]
[1754542660365,0.87585567,766.0,765.41,0.87883562]
[1754542662371,0.87585567,766.0,765.42,1.239]
[1754542662968,0.87585567,765.99,765.42,2.11783562]
[1754542664373,0.87585567,766.0,765.42,1.239]
[1754542670478,0.87585567,766.01,765.42,1.239]
[1754542678386,0.87585567,766.01,765.4,0.87883562]
[1754542682283,0.87585567,766.01,765.41,0.887]
[1754542682585,0.87585567,766.02,765.41,1.76583562]
[1754542683083,0.87585567,766.05,765.44,0.87883562]
[1754542683282,0.87585567,766.17,765.41,0.887]
[1754542683690,0.87585567,766.18,765.41,0.887]
[1754542684690,0.87585567,766.21,765.41,0.887]
[1754542686187,0.87585567,766.25,765.42,0.87883562]
[1754542687093,0.87585567,766.25,765.41,1.76583562]
[1754542687389,0.87585567,766.25,765.42,0.87883562]
[1754542688196,0.87585567,766.25,765.41,1.76583562]
[1754542691495,0.87585567,766.26,765.42,0.87883562]
[1754542693100,0.87585567,766.2,765.46,0.87883562]
[1754542693602,0.87585567,766.19,765.47,0.87883562]
[1754542694101,0.87585567,766.18,765.47,0.87883562]
[1754542695102,0.87585567,766.15,765.49,0.87883562]
[1754542695399,0.87585567,766.15,765.5,0.87883562]
[1754542695798,0.87585567,766.17,765.49,0.87883562]
[1754542696804,0.87585567,766.19,765.51,0.87883562]
[1754542697004,0.87585567,766.24,765.56,0.87883562]
[1754542699103,0.87585567,766.25,765.55,0.87883562]
[1754542699803,0.87585567,766.25,765.41,2.0618272]
[1754542699804,0.87585567,766.26,765.56,0.87883562]
[1754542700311,0.87585567,766.25,765.56,0.87883562]
[1754542700705,0.87585567,766.26,765.56,0.87883562]
[1754542702201,0.87585567,766.27,765.55,0.87883562]
[1754542702404,0.87585567,766.27,765.41,0.887]
[1754542702405,0.87585567,766.26,765.56,0.87883562]
[1754542703204,0.87585567,766.27,765.55,0.87883562]
[1754542704209,0.87585567,766.28,765.55,0.87883562]
[1754542704508,0.87585567,766.29,765.58,0.87883562]